bitfinex-derivatives/quotes_ETHF0:USTF0_20251203
["timestamp","ask_amount","ask_price","bid_price","bid_amount"]
[1764800239644,9.88875394,3167.2,3167.1,1.34101211]
[1764800239946,2.8644,3166.8,3166.1,2.24920291]
[1764800240142,12.556,3166.8,3166.7,3.2078]
[1764800240344,2.8644,3166.8,3166.7,3.2078]
[1764800240543,2.8644,3166.8,3166.7,4.87751412]
[1764800240739,2.8644,3166.8,3166.7,3.2078]
[1764800240944,2.8644,3166.8,3166.7,4.87751412]
[1764800241141,2.8644,3166.8,3166.7,3.2078]
[1764800242542,14.82348648,3166.8,3166.7,3.2078]
[1764800242742,14.82348648,3166.8,3166.3,1.52727447]
[1764800242945,14.82348648,3166.2,3166.1,0.00765914]
[1764800243754,30.88128648,3166.2,3166.1,0.00765914]
[1764800244753,30.88128648,3166.2,3166.1,1.12798845]
[1764800245154,71.68128648,3166.2,3166.1,1.12798845]
[1764800246856,9.6916,3165.7,3165.6,3.2078]
[1764800247057,2.8644,3165.5,3165.2,3.2078]
[1764800247855,2.8644,3165.5,3165.2,3.21165164]
[1764800249957,2.8644,3165.5,3165.2,5.46085455]
[1764800250159,2.8644,3165.5,3165.2,3.21165164]
[1764800252162,2.8644,3165.5,3165.2,5.46085455]
[1764800252469,0.00473814,3165.7,3165.4,1.90019023]
[1764800252665,0.00473814,3165.7,3165.6,3.2078]
[1764800253256,0.00473814,3165.7,3165.6,12.601]
[1764800258763,0.00473814,3165.7,3165.6,13.66544568]
[1764800259161,0.00473814,3165.7,3165.6,15.91464859]
[1764800260157,0.00473814,3165.7,3165.6,13.66544568]
[1764800261061,11.33862462,3165.7,3165.6,4.27224568]
[1764800261960,11.33862462,3165.7,3165.6,8.85694568]
[1764800262263,11.33862462,3165.7,3165.6,4.27224568]
[1764800262862,11.33862462,3165.7,3165.6,5.93672475]
[1764800263257,11.33862462,3165.7,3165.6,5.93822733]
[1764800263456,11.33862462,3165.7,3165.6,4.27224568]
[1764800263963,11.33862462,3165.7,3165.6,5.93825975]
[1764800264149,11.33862462,3165.7,3165.6,4.27224568]
[1764800266962,24.11062462,3165.7,3165.6,4.27224568]
[1764800267263,24.11062462,3165.7,3165.6,5.94801696]
[1764800268255,24.11062462,3165.7,3165.6,5.95123389]
[1764800269063,24.39361551,3165.7,3165.6,4.27224568]
[1764800271364,24.39361551,3165.7,3165.6,1.06444568]
[1764800274856,15.48514551,3165.7,3165.6,1.68704832]
[1764800275060,15.0651,3165.3,3165.2,0.00385164]
[1764800275257,28.09809089,3165.3,3165.2,0.00385164]
[1764800275469,30.36557737,3165.3,3165.2,0.00385164]
[1764800277169,30.36601741,3165.3,3165.2,0.00385164]
[1764800280274,28.09853093,3165.3,3165.2,0.00385164]
[1764800281265,4.4702,3164.5,3164.4,3.2078]
[1764800281565,20.6962729,3164.5,3164.0,3.2078]
[1764800281763,20.6962729,3164.5,3162.9,9.55170593]
[1764800281764,15.0651,3163.7,3163.6,18.5336]
[1764800281970,15.0651,3163.7,3163.6,10.9873]
[1764800282170,17.33258648,3163.7,3163.6,10.9873]
[1764800282371,17.33527689,3163.7,3163.6,3.21116581]
[1764800282573,15.0651,3163.4,3163.3,0.84846045]
[1764800282770,2.26748648,3163.6,3163.5,18.0468]
[1764800282965,0.00269041,3163.7,3163.6,15.3258]
[1764800283666,0.00269041,3163.7,3163.6,15.32949422]
[1764800284265,17.51737689,3163.7,3163.6,7.42969422]
[1764800284468,2.27017689,3163.7,3163.6,14.58379422]
[1764800286873,2.27017689,3163.7,3163.6,15.4184516]
[1764800288679,17.51737689,3163.7,3163.6,15.4184516]
[1764800288878,9.63847689,3163.7,3163.6,15.4184516]
[1764800289280,2.27017689,3163.7,3163.6,15.4184516]
[1764800289879,17.51737689,3163.7,3163.6,1.67825548]
[1764800290182,17.51737689,3163.7,3163.6,0.8383516]
[1764800290677,2.27017689,3163.7,3163.6,15.4184516]
[1764800292281,2.27017689,3163.7,3163.6,16.25798259]
[1764800293282,2.27017689,3163.7,3163.6,15.4184516]
[1764800294178,2.27017689,3163.7,3163.6,16.2582728]
[1764800294882,2.27017689,3163.7,3163.6,15.4184516]
[1764800295381,2.27017689,3163.7,3163.6,16.25859073]
[1764800297179,2.27017689,3163.7,3163.6,16.25934357]
[1764800297374,2.27017689,3163.7,3163.6,15.4184516]
[1764800298385,2.27017689,3163.7,3163.6,16.66704147]
[1764800298888,2.27017689,3163.7,3163.6,16.67321848]
[1764800300290,0.00269041,3163.7,3163.6,16.67321848]
[1764800300585,0.00269041,3163.7,3163.6,20.46121848]
[1764800301888,0.00269041,3163.7,3163.6,18.193732]
[1764800302286,0.00269041,3163.7,3163.6,17.35289761]
[1764800302893,0.00269041,3163.7,3163.6,17.35611342]
[1764800303296,0.00269041,3163.7,3163.6,13.56811342]
[1764800306399,0.00269041,3163.7,3163.6,12.31952355]
[1764800306996,4.4702,3164.5,3164.4,11.6608]
[1764800307194,19.1715,3164.5,3164.4,5.8304]
[1764800307803,19.1715,3164.5,3164.4,11.6608]
[1764800308102,19.45800733,3164.5,3164.4,11.6608]
[1764800308298,19.45800733,3164.5,3164.4,12.50392757]
[1764800308498,19.45800733,3164.5,3164.4,6.67352757]
[1764800309004,19.45800733,3164.5,3164.4,5.8304]
[1764800309198,11.99850733,3164.5,3164.4,12.50392757]
[1764800309404,4.75670733,3164.5,3164.4,11.6608]
[1764800310101,0.00316779,3164.5,3164.4,15.4488]
[1764800310303,1.70280861,3165.9,3164.4,15.4488]
[1764800310503,2.83622601,3167.8,3167.7,14.4977]
[1764800310806,14.9843531,3167.8,3167.7,4.17201293]
[1764800311004,14.7013,3167.8,3167.7,4.17201293]
[1764800311206,14.7013,3167.8,3167.7,5.01042751]
[1764800311501,11.3617,3168.5,3168.4,7.4773]
[1764800311702,11.3617,3168.5,3167.7,4.1748055]
[1764800311703,0.00392012,3167.8,3167.7,14.50049257]
[1764800311905,0.00392012,3167.8,3167.7,18.71933417]
[1764800312304,0.00392012,3167.8,3167.7,20.38957887]
[1764800312609,0.00392012,3167.8,3167.7,18.71933417]
[1764800312814,0.00392012,3167.8,3167.7,20.38957887]
[1764800313201,14.70522012,3167.8,3167.7,4.22163417]
[1764800314207,14.70522012,3167.8,3167.7,5.05446109]
[1764800314408,13.98012012,3167.8,3167.7,5.05446109]
[1764800314608,13.98012012,3167.8,3167.7,5.05446051]
[1764800315908,19.98012012,3167.8,3167.7,4.22163417]
[1764800316103,13.98012012,3167.8,3167.7,4.22163417]
[1764800316906,32.76912012,3167.8,3167.7,4.22163417]
[1764800317106,18.6529,3167.5,3167.4,4.03319779]
[1764800317809,18.6529,3167.5,3167.4,3.2078]
[1764800318204,18.6529,3167.5,3167.4,3.21111033]
[1764800319406,18.6529,3167.5,3167.4,1.033e-05]
[1764800320009,59.4529,3167.5,3167.4,1.033e-05]
[1764800320614,6.93162012,3167.8,3167.7,14.3817]
[1764800320914,6.93162012,3167.8,3167.4,7.26151033]
[1764800320915,13.98012012,3167.8,3167.4,1.033e-05]
[1764800321214,54.78012012,3167.8,3167.4,1.033e-05]
[1764800321803,4.6767,3167.5,3167.4,1.033e-05]
[1764800322909,18.6529,3167.5,3167.4,7.12021033]
[1764800324714,11.6044,3167.5,3167.4,14.38171033]
[1764800324905,40.80392012,3167.8,3167.4,14.38171033]
[1764800325312,7.5983,3167.5,3167.4,14.38171033]
[1764800325508,14.853,3167.5,3167.4,14.38171033]
[1764800325709,11.9414,3167.5,3167.4,1.033e-05]
[1764800327015,19.5397,3167.5,3167.4,7.51881033]
[1764800327315,17.4477,3167.5,3167.4,1.033e-05]
[1764800327716,23.4477,3167.5,3167.4,1.033e-05]
[1764800328014,19.5397,3166.0,3165.0,2.75994189]
[1764800328312,7.5983,3165.1,3164.5,3.9807]
[1764800328522,7.8945,3165.0,3164.0,3.9079]
[1764800328730,7.8945,3165.0,3163.8,3.2078]
[1764800328731,7.8945,3164.5,3163.8,3.2078]
[1764800328913,3.2078,3164.0,3163.8,0.00705925]
[1764800329110,7.5983,3163.9,3163.8,0.00705925]
[1764800329314,14.853,3163.9,3163.8,0.00705925]
[1764800331420,14.853,3163.9,3163.8,7.52585925]
[1764800331621,7.5983,3163.9,3163.8,7.52585925]
[1764800332318,14.853,3163.9,3163.8,0.00705925]
[1764800332918,14.853,3163.9,3163.8,0.85836897]
[1764800333318,14.853,3163.9,3163.8,8.37716897]
[1764800334117,7.5983,3163.9,3163.8,16.03016897]
[1764800334618,3.2078,3164.0,3163.8,16.03016897]
[1764800334825,3.2078,3164.0,3163.9,16.02304038]
[1764800337929,3.2078,3164.0,3163.9,15.1718]
[1764800338835,40.8,3164.4,3163.9,15.1718]
[1764800339042,14.853,3164.1,3164.0,3.788]
[1764800339333,30.8378,3164.1,3164.0,3.788]
[1764800341731,14.853,3163.9,3163.8,0.00705925]
[1764800344434,14.853,3163.9,3163.8,0.00473814]
[1764800344735,14.853,3163.9,3162.6,6.471]
[1764800344736,4.6881,3163.0,3161.3,2.41030685]
[1764800345035,4.6881,3163.0,3162.1,7.2315]
[1764800345036,14.9556,3162.2,3162.1,7.2315]
[1764800345331,30.9624,3162.2,3161.5,4.5012]
[1764800345536,3.2078,3161.6,3161.5,19.02566534]
[1764800345731,3.2078,3161.6,3161.5,19.87941349]
[1764800345932,10.346,3161.6,3161.5,15.37821349]
[1764800346136,18.1634,3161.6,3161.5,7.23870348]
[1764800346625,18.1634,3161.6,3161.5,0.00720348]
[1764800353042,18.1634,3161.6,3160.6,0.84752072]
[1764800353043,4.6881,3161.5,3160.6,0.84752072]
[1764800353242,3.2078,3160.7,3160.6,14.522]
[1764800353444,3.2078,3160.7,3160.6,15.36996357]
[1764800353639,3.2078,3160.7,3160.6,21.36996357]
[1764800353946,3.2078,3160.7,3160.6,21.37272081]
[1764800354636,3.2078,3161.1,3161.0,17.5053]
[1764800354838,14.96362998,3162.2,3162.1,7.2315]
[1764800355138,10.35402998,3162.2,3162.1,14.522]
[1764800355442,3.21582998,3162.2,3162.1,14.522]
[1764800356343,3.21582998,3162.2,3162.1,15.37226623]
[1764800358244,3.21582998,3162.2,3162.1,16.48831229]
[1764800358934,1.54670975,3162.2,3162.1,16.48831229]
[1764800359335,3.2078,3162.7,3162.6,14.522]
[1764800359537,3.2078,3163.1,3162.6,2.52616166]
[1764800359737,3.2078,3163.1,3163.0,14.522]
[1764800360050,3.21190054,3163.1,3163.0,15.37557185]
[1764800361846,18.16750054,3163.1,3163.0,8.08507185]
[1764800362642,18.16750054,3163.1,3163.0,15.37557185]
[1764800363040,10.35010054,3163.1,3163.0,15.37557185]
[1764800364350,10.35010054,3163.1,3163.0,16.49247906]
[1764800364647,3.21190054,3163.1,3163.0,16.49247906]
[1764800364848,10.232,3166.5,3163.0,19.47577906]
[1764800365148,0.15773,3169.7,3163.0,19.47577906]
[1764800365149,7.1382,3166.7,3165.6,1.89943852]
[1764800365346,7.8174,3166.3,3165.7,1.96359701]
[1764800365646,7.1382,3166.3,3166.2,3.2078]
[1764800365948,14.95953365,3166.3,3166.2,4.06157551]
[1764800368345,0.00393365,3166.3,3166.2,18.58357551]
[1764800371052,0.00393365,3166.3,3166.2,18.5791407]
[1764800371655,0.00393365,3166.3,3165.7,1.89943852]
[1764800371656,14.9556,3165.8,3165.7,3.2078]
[1764800371852,4.6881,3166.0,3165.7,3.2078]
[1764800371853,4.6881,3166.0,3165.7,10.4393]
[1764800372054,12.91793365,3166.3,3165.7,17.7298]
[1764800372650,12.91793365,3166.3,3165.7,17.73718284]
[1764800373460,12.91793365,3166.3,3165.7,14.52938284]
[1764800373753,7.1382,3166.0,3165.9,3.2078]
[1764800375060,14.4928,3166.0,3165.9,3.06517409]
[1764800375256,14.6127,3164.7,3164.6,3.2078]
[1764800375459,14.6127,3164.7,3164.6,2.72327418]
[1764800375960,55.4127,3164.7,3164.6,2.72327418]
[1764800376154,14.6127,3164.7,3164.6,2.72327418]
[1764800376459,14.6127,3164.7,3164.6,2.72624343]
[1764800376658,55.4127,3164.7,3164.6,0.00296925]
[1764800377051,18.8987,3164.4,3164.3,0.00319047]
[1764800377253,18.8987,3164.4,3163.5,7.6312]
[1764800377254,31.7947,3164.4,3163.5,3.2078]
[1764800377751,53.695,3164.7,3164.3,7.8375]
[1764800377951,14.6127,3164.4,3164.3,0.00227328]
[1764800378152,18.8987,3164.4,3164.3,0.00227328]
[1764800379274,4.286,3164.4,3163.5,18.3548]
[1764800379458,3.2078,3164.2,3163.5,18.3548]
[1764800380163,3.2078,3164.2,3163.5,18.35729485]
[1764800387165,3.2078,3164.2,3163.5,26.56889485]
[1764800387959,15.3559,3163.6,3163.5,0.00249485]
[1764800388161,15.35813325,3163.6,3163.1,3.2078]
[1764800388565,7.865,3163.2,3163.1,10.7901]
[1764800388864,7.865,3163.2,3163.1,18.3548]
[1764800389065,7.865,3163.2,3163.1,18.35747809]
[1764800389575,45.485,3163.5,3163.1,18.35747809]
[1764800391671,7.865,3163.2,3163.1,18.35747809]
[1764800394074,0.00223325,3163.6,3163.5,15.147]
[1764800394370,7.86723325,3163.6,3163.5,15.147]
[1764800394566,48.66723325,3163.6,3163.5,15.147]
[1764800395469,15.3559,3163.2,3163.1,18.35747809]
[1764800395673,15.3559,3163.2,3163.1,11.64337407]
[1764800396062,15.3559,3163.2,3163.1,19.20807407]
[1764800397476,15.3559,3163.2,3163.1,0.00267809]
[1764800398878,34.1919,3163.2,3163.1,0.00267809]
[1764800399073,4.685,3163.0,3162.3,15.147]
[1764800399272,4.68973701,3163.0,3162.5,4.4236]
[1764800399476,7.865,3162.7,3162.6,15.99883482]
[1764800399978,7.865,3162.7,3162.6,16.00122413]
[1764800400172,40.8,3162.9,3162.8,15.147]
[1764800400479,7.86973701,3163.0,3162.9,15.147]
[1764800400677,7.86973701,3163.0,3162.9,15.99658427]
[1764800400881,48.66973701,3163.0,3162.9,15.99658427]
[1764800401071,7.86973701,3163.0,3162.9,15.99658427]
[1764800401973,0.00473701,3163.0,3162.9,16.83549331]
[1764800402177,0.649,3163.2,3163.1,15.147]
[1764800402374,11.7218,3163.4,3163.3,15.147]
[1764800402576,11.7218,3163.4,3163.3,15.99658427]
[1764800402980,8.514,3163.4,3163.3,16.83549331]
[1764800403382,8.514,3163.4,3163.3,15.99658427]
[1764800404978,2.26430466,3167.4,3166.1,14.8497]
[1764800405273,1.89943852,3166.9,3166.3,3.2078]
[1764800405484,4.3055,3167.0,3166.3,3.2078]
[1764800405485,14.678,3166.4,3166.3,3.2078]
[1764800405679,14.678,3166.4,3166.3,4.05696297]
[1764800405879,3.2078,3167.3,3166.3,4.05696297]
[1764800405880,0.00473701,3166.7,3166.6,14.8497]
[1764800406074,3.2078,3167.7,3166.6,14.8497]
[1764800406075,3.2078,3167.7,3166.6,15.69886297]
[1764800406275,7.3216,3167.2,3167.1,3.2078]
[1764800406480,7.3216,3167.2,3167.1,4.89681953]
[1764800406784,3.2078,3167.7,3167.1,11.66006297]
[1764800406976,0.00842819,3167.7,3167.6,3.2078]
[1764800407176,0.00842819,3167.7,3167.6,18.90666297]
[1764800407381,0.00842819,3167.7,3167.6,19.74195331]
[1764800407880,14.68642819,3167.7,3167.6,4.05696297]
[1764800408182,20.68642819,3167.7,3167.6,0.84916297]
[1764800408576,14.678,3167.3,3167.2,3.2078]
[1764800408879,14.678,3167.3,3166.7,3.2078]
[1764800408880,14.678,3166.8,3166.7,3.2078]
[1764800409476,18.9835,3166.8,3166.7,3.2078]
[1764800409871,14.678,3166.4,3166.3,0.00382658]
[1764800410071,14.678,3166.4,3166.3,2.658e-05]
[1764800410278,14.678,3166.4,3166.0,0.00473701]
[1764800410279,14.678,3166.1,3166.0,0.00473701]
[1764800410682,7.3216,3165.4,3165.3,3.2078]
[1764800410979,14.678,3165.4,3165.3,3.2078]
[1764800411179,14.68134946,3165.4,3165.3,3.21169541]
[1764800411582,0.00334946,3165.4,3165.3,18.06139541]
[1764800414385,7.32494946,3165.4,3165.3,3.21169541]
[1764800415688,0.00334946,3165.4,3165.3,10.81479541]
[1764800418292,0.00334946,3165.4,3165.3,18.06139541]
[1764800420697,0.00334946,3165.4,3165.3,18.93855904]
[1764800420899,0.00473701,3165.7,3165.6,14.8497]
[1764800421198,0.00473701,3165.7,3165.6,15.72686363]
[1764800421995,0.00863193,3165.7,3165.6,15.72686363]
[1764800422501,40.8,3166.4,3165.6,19.51486363]
[1764800422800,40.8,3166.4,3165.8,3.2078]
[1764800423597,40.80737397,3166.4,3165.8,3.2078]
[1764800424605,40.80737397,3166.4,3165.9,0.87719272]
[1764800424805,40.80737397,3166.4,3165.8,3.2078]
[1764800425103,40.80737397,3166.4,3166.3,14.8497]
[1764800426298,0.00737397,3166.4,3166.3,14.8497]
[1764800426998,4.3055,3166.0,3165.8,3.2078]
[1764800427206,14.678,3165.8,3165.7,3.2078]
[1764800427399,14.678,3165.8,3165.7,4.08582514]
[1764800427602,14.678,3165.8,3165.3,3.21169541]
[1764800427798,7.3216,3165.5,3165.4,8.4813646]
[1764800428002,14.678,3165.4,3165.3,0.00389541]
[1764800428204,14.678,3165.4,3165.3,0.88227634]
[1764800432211,14.678,3165.4,3165.3,1.71756668]
[1764800432615,14.678,3165.4,3165.3,9.32066668]
[1764800433110,14.678,3165.4,3165.3,1.71756668]
[1764800433802,27.51,3165.4,3165.3,9.32066668]
[1764800434299,27.51,3165.4,3165.3,8.48537634]
[1764800437410,7.852,3165.4,3165.3,19.55327634]
[1764800437620,12.825,3165.5,3165.3,19.55327634]
[1764800437810,20.677,3165.5,3165.4,18.02525652]
[1764800438214,20.677,3165.5,3165.4,16.34158093]
[1764800440720,20.677,3165.5,3165.4,19.54938093]
[1764800442224,20.1893,3165.7,3165.6,15.3669]
[1764800442420,7.3833,3165.7,3165.6,17.93294381]
[1764800442619,20.1883,3165.7,3165.6,16.24528093]
[1764800442825,20.1873,3165.7,3165.6,16.24528093]
[1764800443023,19.0764,3166.0,3165.9,7.6027]
[1764800443225,31.8794,3166.0,3165.9,0.87838093]
[1764800444018,31.8794,3166.0,3165.9,2.00341044]
[1764800444824,14.7709,3165.7,3165.6,1.12502951]
[1764800445018,14.7709,3165.6,3165.5,1.12502951]
[1764800446025,19.1796,3165.5,3165.4,1.12502951]
[1764800446225,31.9786,3165.5,3165.4,1.12502951]
[1764800449724,14.92884,3165.4,3165.1,4.89530821]
[1764800450026,14.7709,3165.1,3165.0,0.00473701]
[1764800450223,55.5709,3165.1,3165.0,0.84895053]
[1764800450528,14.7709,3164.4,3164.3,1.68750821]
[1764800450727,27.5619,3164.4,3164.3,1.68750821]
[1764800450928,30.7697,3164.4,3164.3,0.00371728]
[1764800451129,30.7757,3164.4,3164.3,15.37061728]
[1764800451329,27.5679,3164.4,3164.3,0.00371728]
[1764800453026,14.7709,3164.1,3164.0,0.00473701]
[1764800453626,27.5619,3164.1,3164.0,0.00473701]
[1764800454129,7.3833,3162.8,3162.7,9.28952268]
[1764800454436,7.3833,3162.6,3162.5,12.1179]
[1764800454637,14.7709,3162.6,3162.5,7.6027]
[1764800455128,14.7709,3162.4,3161.7,3.2078]
[1764800455329,20.1983,3162.3,3162.2,7.6027]
[1764800455542,30.7937,3162.3,3162.2,7.6027]
[1764800456826,30.7937,3162.3,3162.2,8.4216017]
[1764800458735,10.5911,3162.3,3162.2,16.1858017]
[1764800459036,23.4021,3162.3,3162.2,16.1858017]
[1764800459732,16.0188,3162.3,3162.2,16.1858017]
[1764800459938,14.7709,3162.1,3162.0,0.00308661]
[1764800460242,14.7709,3162.1,3162.0,0.81955751]
[1764800460734,17.9787,3162.3,3162.2,15.3669]
[1764800460938,30.7807,3162.3,3162.2,15.3669]
[1764800461237,3.2078,3162.3,3162.2,15.3669]
[1764800461431,3.2078,3162.3,3162.2,16.18284314]
[1764800464035,27.3998,3162.6,3162.5,7.6027]
[1764800464235,30.6076,3162.6,3162.5,7.6027]
[1764800465338,0.00390224,3164.1,3162.5,7.6027]
[1764800465339,7.26678181,3166.1,3165.5,3.6877]
[1764800465542,7.26678181,3166.1,3163.5,3.6877]
[1764800465543,14.632,3165.1,3164.0,3.8364]
[1764800465735,40.8,3165.9,3165.0,10.3878]
[1764800465935,40.8,3165.9,3164.4,3.8503]
[1764800465936,14.632,3165.9,3165.8,3.2078]
[1764800466135,14.632,3165.9,3165.8,4.08330924]
[1764800466339,14.63528477,3165.9,3165.8,4.08690355]
[1764800466938,55.43528477,3165.9,3165.8,4.08690355]
[1764800467446,40.80328477,3165.9,3165.8,11.26690355]
[1764800467741,0.00328477,3165.9,3165.8,11.26690355]
[1764800469440,0.00328477,3165.9,3165.8,19.13710355]
[1764800477541,7.42023701,3166.2,3166.1,7.18]
[1764800478635,7.42344142,3166.2,3166.1,7.18]
[1764800479039,14.63994142,3166.2,3166.1,7.18]
[1764800479441,0.00794142,3166.2,3166.1,15.0502]
[1764800479747,14.632,3165.9,3165.8,3.21139431]
[1764800479943,14.632,3165.9,3165.8,10.39139431]
[1764800480242,14.632,3165.9,3165.8,3.21139431]
[1764800480439,14.632,3165.6,3165.5,3.21253701]
[1764800480645,7.4155,3165.1,3165.0,18.258]
[1764800480840,14.632,3164.6,3164.5,3.2078]
[1764800481041,14.632,3164.6,3164.1,3.2078]
[1764800481440,40.8,3164.5,3164.1,3.2078]
[1764800481641,40.8,3164.5,3164.1,3.21112005]
[1764800483249,44.0078,3164.5,3164.4,15.0502]
[1764800483444,14.63673701,3164.6,3164.1,3.21112005]
[1764800488342,7.42023701,3164.6,3164.5,15.0502]
[1764800488646,20.33723701,3164.6,3164.5,15.0502]
[1764800489253,7.4155,3164.2,3164.1,10.39112005]
[1764800489449,14.632,3164.2,3164.1,10.39112005]
[1764800489642,27.541,3164.2,3164.1,0.00332005]
[1764800490259,14.632,3164.1,3164.0,3.701e-05]
[1764800490555,14.632,3163.7,3163.6,3.2078]
[1764800490756,27.544,3163.7,3163.6,3.2078]
[1764800491142,4.4715,3164.0,3163.6,15.0502]
[1764800491348,7.41841021,3163.7,3163.6,15.0539619]
[1764800491952,14.63491021,3163.7,3163.6,0.0037619]
[1764800492152,14.63491021,3163.7,3163.6,7.1837619]
[1764800492758,14.63491021,3163.7,3163.6,8.06344921]
[1764800492966,14.63491021,3163.7,3163.6,0.88344921]
[1764800493750,15.3002,3163.2,3163.1,0.0069]
[1764800493953,28.2012,3163.2,3163.1,0.88751947]
[1764800494156,31.409,3163.2,3163.1,0.88751947]
[1764800494352,31.409,3163.2,3163.1,0.88061947]
[1764800494861,31.409,3163.2,3163.1,0.88377654]
[1764800497554,31.409,3163.2,3163.1,0.00315707]
[1764800499459,72.209,3163.2,3163.1,0.00315707]
[1764800499764,69.0012,3163.2,3163.1,0.00315707]
[1764800505967,69.0012,3163.2,3163.1,0.87388478]
[1764800506467,69.0012,3163.2,3162.6,7.004]
[1764800506769,69.0012,3163.2,3162.6,3.216]
[1764800506770,15.2352,3162.7,3162.6,3.216]
[1764800507062,15.2352,3162.7,3161.7,19.83784936]
[1764800507063,7.364,3161.8,3161.7,19.83784936]
[1764800507662,15.2352,3161.8,3161.7,12.48954606]
[1764800507869,15.2352,3161.8,3161.7,1.11004606]
[1764800508069,15.2352,3161.8,3161.7,7.5943967]
[1764800508263,15.2352,3161.8,3161.7,8.70154606]
[1764800508768,15.2352,3161.8,3161.7,7.5943967]
[1764800510266,15.2352,3161.8,3161.7,1.11004606]
[1764800510570,28.0882,3161.8,3161.7,7.5915]
[1764800510765,15.2352,3161.4,3161.3,2.4938077]
[1764800510962,31.297,3161.4,3161.3,1.38665834]
[1764800511568,31.3009483,3161.4,3161.3,1.38999099]
[1764800513972,31.3009483,3161.4,3161.3,16.33269099]
[1764800514267,31.3009483,3161.4,3161.3,1.38999099]
[1764800514766,18.4469483,3161.4,3161.3,16.33269099]
[1764800514970,18.4469483,3161.4,3161.3,1.38999099]
[1764800518470,18.4469483,3161.4,3161.3,2.24717221]
[1764800518676,31.2799483,3161.4,3161.3,9.83867221]
[1764800519079,31.2799483,3161.4,3161.3,2.24717221]
[1764800520081,7.364,3160.9,3160.8,1.10714936]
[1764800520383,31.273,3160.9,3160.8,1.10714936]
[1764800520680,15.2352,3160.5,3160.4,1.10714936]
[1764800520874,28.0642,3160.5,3160.4,8.69864936]
[1764800521177,34.3361,3160.5,3160.4,0.0024316]
[1764800521374,21.5071,3160.5,3160.4,0.0024316]
[1764800521575,31.27,3160.5,3160.4,0.0024316]
[1764800521780,35.8137,3160.5,3160.4,0.0024316]
[1764800522285,76.6137,3160.5,3160.4,0.0024316]
[1764800525581,51.3718,3160.5,3160.4,15.2199316]
[1764800525777,30.9277,3160.5,3160.4,0.0024316]
[1764800526180,35.4732,3160.5,3160.4,0.0024316]
[1764800528078,35.4732,3160.5,3159.7,1.66488446]
[1764800528079,7.2971,3159.8,3159.7,8.89584936]
[1764800528284,14.836,3159.8,3159.7,8.89584936]
[1764800528677,7.2971,3159.8,3159.7,16.32464936]
[1764800529177,56.8218,3159.9,3159.8,15.2175]
[1764800529578,30.8578,3159.9,3159.8,15.2175]
[1764800529981,14.836,3159.8,3159.7,1.1104724]
[1764800530181,14.836,3159.8,3159.7,0.00332304]
[1764800530382,14.836,3159.5,3159.4,1.10714936]
[1764800530579,7.2971,3158.9,3158.8,1.10714936]
[1764800530779,7.2971,3158.5,3158.4,1.10714936]
[1764800530978,14.836,3158.4,3158.3,1.10714936]
[1764800531179,7.2971,3158.3,3158.2,1.10714936]
[1764800531383,7.2971,3158.3,3158.2,1.11077339]
[1764800531384,14.83887879,3158.3,3158.2,1.11077339]
[1764800531777,14.83887879,3158.3,3158.2,0.00362403]
[1764800531979,14.83887879,3158.3,3158.2,0.84984697]
[1764800532183,14.83887879,3158.3,3158.2,0.00362403]
[1764800532385,14.83887879,3158.3,3158.2,0.84898054]
[1764800532690,55.63887879,3158.3,3158.2,0.00362403]
[1764800533488,55.63887879,3158.3,3158.2,7.79232403]
[1764800533686,12.81487879,3158.3,3158.2,16.06622349]
[1764800533887,12.81487879,3158.3,3158.2,16.06644083]
[1764800534093,0.00287879,3158.3,3158.2,16.06644083]
[1764800540893,3.2078,3158.4,3158.3,15.2175]
[1764800540894,7.2971,3158.4,3158.3,15.2175]
[1764800541086,7.2971,3158.4,3158.3,16.0628168]
[1764800541703,7.2971,3158.4,3158.3,16.05947131]
[1764800541900,0.00328076,3158.4,3158.3,16.05947131]
[1764800542502,7.30038076,3158.4,3158.3,16.05947131]
[1764800543298,14.83928076,3158.4,3158.3,16.05947131]
[1764800543597,14.83928076,3158.4,3158.3,0.84197131]
[1764800543997,14.83928076,3158.4,3158.3,16.05947131]
[1764800544200,7.30038076,3158.4,3158.3,16.05947131]
[1764800544599,3.2078,3158.7,3158.6,15.2175]
[1764800544903,0.00474481,3158.8,3158.7,15.2175]
[1764800545104,0.00474481,3158.8,3158.7,16.05947131]
[1764800545597,0.00729253,3158.8,3158.7,16.05947131]
[1764800547402,0.00729253,3158.8,3158.7,17.17938966]
[1764800549200,0.00729253,3158.8,3158.7,16.05947131]
[1764800549405,0.00729253,3158.8,3158.7,17.72435577]
[1764800549704,0.00729253,3158.8,3158.7,16.05947131]
[1764800550200,0.00729253,3158.8,3158.7,17.72435577]
[1764800550401,3.2078,3159.5,3159.4,15.2175]
[1764800550703,3.2078,3159.5,3159.4,16.05947131]
[1764800550893,3.2078,3159.5,3159.4,17.74504021]
[1764800551092,44.0078,3159.9,3159.8,15.2175]
[1764800551294,44.0078,3159.9,3159.8,16.05947131]
[1764800551495,44.01092182,3159.9,3159.8,16.05947131]
[1764800552403,14.836,3160.1,3160.0,7.7887]
[1764800552593,7.2971,3159.8,3159.7,1.12376094]
[1764800552797,18.0438,3159.8,3159.7,1.96899748]
[1764800553096,10.5049,3159.9,3159.8,15.2175]
[1764800553294,10.5049,3159.9,3159.8,17.18677877]
[1764800553503,18.04732903,3159.9,3159.8,17.18677877]
[1764800553907,14.83952903,3159.9,3159.8,17.18677877]
[1764800554206,0.00352903,3159.9,3159.8,17.74830544]
[1764800554405,17.91152903,3159.9,3159.8,8.63393654]
[1764800554706,17.91152903,3159.9,3159.8,16.43843654]
[1764800554903,10.38972903,3159.9,3159.8,16.43843654]
[1764800555401,3.21132903,3159.9,3159.8,16.43843654]
[1764800555600,0.00352903,3159.9,3159.8,18.12444797]
[1764800556295,0.00352903,3159.9,3159.8,16.43843654]
[1764800558208,0.00474481,3160.2,3160.1,15.491]
[1764800558410,0.00474481,3160.2,3160.1,18.02161922]
[1764800558905,0.00474481,3160.2,3160.1,16.33623654]
[1764800559104,7.18623043,3160.2,3160.1,16.33623654]
[1764800559298,7.18623043,3160.2,3160.1,17.46002643]
[1764800559508,14.86873043,3160.2,3160.1,0.84523654]
[1764800559807,18.07653043,3160.2,3160.1,0.84523654]